Cogmind - Beta 13 @@@ ROGUE MODE // 2024.04.07 @ 06:38:47 Player: f_ Result: Destroyed by exploding Power Conduit Performance ------------- Evolutions (6) 3000 Regions Visited (8) 1600 Robots Destroyed (0) 0 Value Destroyed (0) 0 Prototype IDs (0) 0 Alien Tech Used (0) 0 Bonus (2957) 2957 TOTAL SCORE: 7557 Bonus ------- Pacifist 2880 Follower Combat Kills 77 Cogmind --------- Core Integrity 0/1150 Matter 198/300 Energy 100/100 System Corruption 0% Temperature Cool (38) Movement Core (50) Location -4/Factory Parts ------- > --- POWER (2) -------- (None) > --- PROPULSION (6) --- (None) > --- UTILITY (9) ------ Signal Interpreter > --- WEAPON (2) ------- (None) > --- INVENTORY (5) ---- Micro Nuclear Core Chainsword Phasing Sabre Peak State ------------ > --- POWER ------------ Light Ion Engine Micro Nuclear Core > --- PROPULSION ------- VTOL Module Xenon Bombardment Thruster Xenon Bombardment Thruster Xenon Bombardment Thruster > --- UTILITY ---------- Advanced Sensor Array Signal Interpreter Reaction Control System > --- WEAPON ----------- (None) > --- INVENTORY -------- Xenon Bombardment Thruster Nuclear Pulse Thruster [Rating: 28] Favorites ----------- Power Micro Nuclear Core Engine Light Ion Engine Power Core Micro Nuclear Core Propulsion Xenon Bombardment Thruster Flight Unit Xenon Bombardment Thruster Utility Signal Interpreter Device Advanced Sensor Array Processor Signal Interpreter Weapon None Build | -11 -10 -9 -8 -7 -6 -5 -5 -4 ------- Run | Yrd Mat Mat Mat Fac Fac Fac Ext Fac Slots Evolved 12 | . . 2 2 2 2 2 . 2 Power 1 | . . . . 1 . . . . Propulsion 4 | . . 2 . . 1 . . 1 Utility 7 | . . . 2 1 1 2 . 1 Weapon . | . . . . . . . . . Parts Attached 18 | . 1 1 4 1 . 3 3 5 Power 2 | . . . . 1 . 1 . . Engine 1 | . . . . 1 . . . . Core 1 | . . . . . . 1 . . Reactor . | . . . . . . . . . Propulsion 12 | . . 1 4 . . . 3 4 Treads . | . . . . . . . . . Leg . | . . . . . . . . . Wheel . | . . . . . . . . . Hover . | . . . . . . . . . Flight 12 | . . 1 4 . . . 3 4 Utility 4 | . 1 . . . . 2 . 1 Device 3 | . . . . . . 2 . 1 Storage . | . . . . . . . . . Processor 1 | . 1 . . . . . . . Hackware . | . . . . . . . . . Protection . | . . . . . . . . . Artifact . | . . . . . . . . . Weapon . | . . . . . . . . . Energy Gun . | . . . . . . . . . Energy Cannon . | . . . . . . . . . Ballistic Gun . | . . . . . . . . . Ballistic Cannon . | . . . . . . . . . Launcher . | . . . . . . . . . Special Weapon . | . . . . . . . . . Impact Weapon . | . . . . . . . . . Slashing Weapon . | . . . . . . . . . Piercing Weapon . | . . . . . . . . . Special Melee Weapon . | . . . . . . . . . Unidentified Prototypes . | . . . . . . . . . Parts Lost 16 | . . 1 . . . 4 2 9 Power 1 | . . . . . . 1 . . Propulsion 12 | . . 1 . . . 2 1 8 Utility 3 | . . . . . . 1 1 1 Weapon . | . . . . . . . . . Highest Loss Streak 5 | . . 1 . . . 2 2 5 To Critical Strikes . | . . . . . . . . . Average Slot Usage (%) 26 | . 10 15 19 46 40 42 28 18 Engine 1 | . . . . 7 6 4 . . Core 2 | . . . . . . 4 5 1 Flight 12 | . . 4 10 30 26 15 14 10 Device 2 | . . . . . . 9 1 . Processor 6 | . 10 11 9 7 6 5 5 5 Naked Turns 13 | . 13 . . . . . . . Heaviest Build 11 | . . . . 3 3 11 7 7 Greatest Support 24 | 3 3 4 22 22 22 22 24 24 Greatest Overweight (x) 1 | . . . . . . . . 1 Average Overweight (x) . | . . . . . . . . . Largest Inventory Capacity 5 | 5 5 5 5 5 5 5 5 5 Average Capacity 5 | 5 5 5 5 5 5 5 5 5 Most Carried 5 | 1 1 1 2 1 3 5 5 3 Average Carried 2 | . 1 1 1 1 2 3 3 2 Final Capacity 5 | 5 5 5 5 5 5 5 5 5 Final Carried 4 | 1 1 1 2 1 3 4 2 3 Class Distribution -------------------- 65% | Mutant 34% | Sprinter Dominant Class ---------------- Mutant | -10/Materials Mutant | -9/Materials Mutant | -8/Materials Sprinter | -7/Factory Sprinter | -6/Factory Mutant | -5/Factory Mutant | -5/Extension Mutant | -4/Factory Resources | -11 -10 -9 -8 -7 -6 -5 -5 -4 ----------- Run | Yrd Mat Mat Mat Fac Fac Fac Ext Fac Matter Collected 184 | 120 . . . . . . 36 28 Remotely . | . . . . . . . . . Salvage Created . | . . . . . . . . . Parts . | . . . . . . . . . Haulers Intercepted . | . . . . . . . . . Recyclers Shooed . | . . . . . . . . . Parts Field Recycled . | . . . . . . . . . Retrieved Matter . | . . . . . . . . . Parts Self-Destructed . | . . . . . . . . . Prevented . | . . . . . . . . . Kills | -11 -10 -9 -8 -7 -6 -5 -5 -4 ------- Run | Yrd Mat Mat Mat Fac Fac Fac Ext Fac Combat Hostiles Destroyed . | . . . . . . . . . Classes Destroyed . | . . . . . . . . . Best Kill Streak . | . . . . . . . . . Combat Bots Only . | . . . . . . . . . Max Kills in Single Turn . | . . . . . . . . . Gunslinging . | . . . . . . . . . Exploded . | . . . . . . . . . Melee . | . . . . . . . . . Uniques/NPCs Destroyed . | . . . . . . . . . Combat | -11 -10 -9 -8 -7 -6 -5 -5 -4 -------- Run | Yrd Mat Mat Mat Fac Fac Fac Ext Fac Hostile Shots Fired 327 | . . 40 23 3 . 31 28 202 Missed 186 | . . 19 16 1 . 19 15 116 Damage Taken 2541 | . . 299 63 27 . 177 264 1711 Core 1710 | . . 263 46 . . 43 156 1202 Absorbed by Shields 11 | . . . . . . . 11 . Core Remaining (%) 86 | 100 100 34 91 100 100 . 80 . Volleys Fired . | . . . . . . . . . Largest . | . . . . . . . . . Hottest . | . . . . . . . . . Shots Fired . | . . . . . . . . . Gun . | . . . . . . . . . Cannon . | . . . . . . . . . Launcher . | . . . . . . . . . Special . | . . . . . . . . . Kinetic . | . . . . . . . . . Thermal . | . . . . . . . . . Explosive . | . . . . . . . . . Electromagnetic . | . . . . . . . . . Robot Hit Streak . | . . . . . . . . . Robot Miss Streak . | . . . . . . . . . Penetration Max . | . . . . . . . . . Secondary Targets . | . . . . . . . . . Shots Hit Robots . | . . . . . . . . . Core Hits . | . . . . . . . . . Critical Kills . | . . . . . . . . . Critical Parts Destroyed . | . . . . . . . . . Critical Strikes . | . . . . . . . . . Melee Attacks . | . . . . . . . . . Impact . | . . . . . . . . . Slashing . | . . . . . . . . . Piercing . | . . . . . . . . . Sneak Attacks . | . . . . . . . . . Combat Hostiles . | . . . . . . . . . Follow-up Attacks . | . . . . . . . . . Damage Inflicted 28 | . . 28 . . . . . . Guns . | . . . . . . . . . Cannons . | . . . . . . . . . Explosions . | . . . . . . . . . Melee . | . . . . . . . . . Ramming 28 | . . 28 . . . . . . Kinetic . | . . . . . . . . . Thermal . | . . . . . . . . . Explosive . | . . . . . . . . . Electromagnetic . | . . . . . . . . . Impact . | . . . . . . . . . Slashing . | . . . . . . . . . Piercing . | . . . . . . . . . Highest Corruption 2 | . . 1 . 2 . . . . Average Corruption 1 | . . 1 . 2 . . . . Corruption Purged . | . . . . . . . . . Corruption Blocked . | . . . . . . . . . Effects 2 | . . 2 . . . . . . Message Errors 1 | . . 1 . . . . . . Matter Fused 1 | . . 1 . . . . . . Overload Shots . | . . . . . . . . . Overflow Damage . | . . . . . . . . . Projectiles . | . . . . . . . . . Explosions . | . . . . . . . . . Melee . | . . . . . . . . . Knockbacks . | . . . . . . . . . Impact . | . . . . . . . . . Kinetic . | . . . . . . . . . Secondary . | . . . . . . . . . Self-Inflicted Damage 12 | . . 12 . . . . . . Shots . | . . . . . . . . . Rammed 6 | . . 6 . . . . . . Targets Rammed 6 | . . 6 . . . . . . Kicked . | . . . . . . . . . Crushed . | . . . . . . . . . Highest Temperature 21 | . . 5 . . . 21 18 . Average Temperature 9 | . . 5 . . . 9 11 . Received Heat Transfer 451 | . . 120 9 . . 63 97 162 Siege Activations . | . . . . . . . . . Robots Corrupted . | . . . . . . . . . Combat Hostiles . | . . . . . . . . . Parts Fried . | . . . . . . . . . Impact Corruptions . | . . . . . . . . . Robots Melted . | . . . . . . . . . Combat Hostiles . | . . . . . . . . . Parts Melted . | . . . . . . . . . Heat Transferred . | . . . . . . . . . Parts Sabotaged . | . . . . . . . . . Parts Stolen . | . . . . . . . . . Parts Stripped . | . . . . . . . . . Power Chain Reactions . | . . . . . . . . . Alert | -11 -10 -9 -8 -7 -6 -5 -5 -4 ------- Run | Yrd Mat Mat Mat Fac Fac Fac Ext Fac Peak Influence 423 | . . 168 158 146 85 99 400 423 Initial 196 | . . . 70 71 71 41 38 196 Average 128 | . . 48 91 99 82 59 205 284 Maximum Alert Level 2 | . . . . . . . 2 2 Low Security (%) 73 | 100 100 100 100 100 100 100 53 4 Level 1 26 | . . . . . . . 45 93 Level 2 . | . . . . . . . . 1 Level 3 . | . . . . . . . . . Level 4 . | . . . . . . . . . Level 5 . | . . . . . . . . . High Security . | . . . . . . . . . Max Security . | . . . . . . . . . Squads Dispatched 13 | . . 3 1 1 . 3 2 3 Investigation 11 | . . 3 1 1 . 3 2 1 Extermination . | . . . . . . . . . Reinforcement 2 | . . . . . . . . 2 Assault . | . . . . . . . . . Garrison . | . . . . . . . . . Intercept . | . . . . . . . . . Searches Triggered . | . . . . . . . . . Construction Impeded . | . . . . . . . . . Haulers Reinforced . | . . . . . . . . . Active Scanning Responses . | . . . . . . . . . Cargo Convoy Interrupts . | . . . . . . . . . Stealth | -11 -10 -9 -8 -7 -6 -5 -5 -4 --------- Run | Yrd Mat Mat Mat Fac Fac Fac Ext Fac Distress Signals 7 | . . 3 . 1 . 1 1 1 Communications Jammed . | . . . . . . . . . Distress Signals . | . . . . . . . . . Times Spotted 88 | . . 15 12 4 . 11 15 31 Peak Tracking Total 19 | . . 12 7 4 . 8 11 19 Tactical Retreats 12 | . . 2 1 1 . 1 3 4 Traps | -11 -10 -9 -8 -7 -6 -5 -5 -4 ------- Run | Yrd Mat Mat Mat Fac Fac Fac Ext Fac Traps Triggered 1 | . . . . 1 . . . . Indirectly . | . . . . . . . . . Trap Hack Attempts . | . . . . . . . . . Triggered . | . . . . . . . . . Disarmed . | . . . . . . . . . Reprogrammed . | . . . . . . . . . Reused . | . . . . . . . . . Traps Extracted . | . . . . . . . . . Installed . | . . . . . . . . . Triggered . | . . . . . . . . . Machines | -11 -10 -9 -8 -7 -6 -5 -5 -4 ---------- Run | Yrd Mat Mat Mat Fac Fac Fac Ext Fac Machines Disabled . | . . . . . . . . . Max in Single Turn . | . . . . . . . . . Machines Repaired . | . . . . . . . . . Machines Dismantled . | . . . . . . . . . Machines Sabotaged . | . . . . . . . . . Overloaded Fab Kills . | . . . . . . . . . Hacking | -11 -10 -9 -8 -7 -6 -5 -5 -4 --------- Run | Yrd Mat Mat Mat Fac Fac Fac Ext Fac Machines Accessed 22 | . . 4 2 1 1 3 9 2 Terminals 22 | . . 4 2 1 1 3 9 2 Fabricators . | . . . . . . . . . Repair Stations . | . . . . . . . . . Recycling Units . | . . . . . . . . . Scanalyzers . | . . . . . . . . . Garrison Access . | . . . . . . . . . Total Hacks 66 | . . 12 7 6 3 10 21 7 Successful 25 | . . 2 3 1 3 3 10 3 Failed 41 | . . 10 4 5 . 7 11 4 Catastrophic 14 | . . 3 2 . . 3 3 3 Database Lockouts . | . . . . . . . . . Manual 52 | . . 12 7 6 3 8 9 7 Terminals 66 | . . 12 7 6 3 10 21 7 Fabricators . | . . . . . . . . . Repair Stations . | . . . . . . . . . Recycling Units . | . . . . . . . . . Scanalyzers . | . . . . . . . . . Garrison Access . | . . . . . . . . . Terminal Hacks 13 | . . 1 1 . 2 1 7 1 Record 1 | . . . . . . 1 . . Open Door 6 | . . . . . . . 6 . Level Access Points 4 | . . 1 1 . 1 . . 1 Terminal Index 2 | . . . . . 1 . 1 . Fabricator Hacks . | . . . . . . . . . Repair Station Hacks . | . . . . . . . . . Recycling Unit Hacks . | . . . . . . . . . Scanalyzer . | . . . . . . . . . Garrison Access Hacks . | . . . . . . . . . Unauthorized Hacks 12 | . . 1 2 1 1 2 3 2 Terminals 12 | . . 1 2 1 1 2 3 2 Assimilate 1 | . . . . . . . 1 . Botnet 11 | . . 1 2 1 1 2 2 2 Fabricators . | . . . . . . . . . Repair Stations . | . . . . . . . . . Recycling Units . | . . . . . . . . . Scanalyzers . | . . . . . . . . . Garrison Access . | . . . . . . . . . Data Cores Recovered . | . . . . . . . . . Used . | . . . . . . . . . Hacking Detections 18 | . . 4 1 1 1 3 6 2 Full Trace Events 11 | . . 3 1 1 . 3 2 1 Feedback Events . | . . . . . . . . . Feedback Blocked . | . . . . . . . . . Robot Schematics Acquired . | . . . . . . . . . Robots Built . | . . . . . . . . . Authchips . | . . . . . . . . . Time . | . . . . . . . . . Total Robot Build Rating . | . . . . . . . . . Part Schematics Acquired . | . . . . . . . . . Parts Built . | . . . . . . . . . Authchips . | . . . . . . . . . Time . | . . . . . . . . . Total Part Build Rating . | . . . . . . . . . Parts Repaired . | . . . . . . . . . Time . | . . . . . . . . . Parts Recycled . | . . . . . . . . . Recycled Matter . | . . . . . . . . . Retrieved Matter . | . . . . . . . . . Retrieved Components . | . . . . . . . . . Parts Scanalyzed . | . . . . . . . . . Part Schematics Acquired . | . . . . . . . . . Parts Damaged . | . . . . . . . . . Bothacking | -11 -10 -9 -8 -7 -6 -5 -5 -4 ------------ Run | Yrd Mat Mat Mat Fac Fac Fac Ext Fac Used RIF Installer . | . . . . . . . . . Robots Hacked . | . . . . . . . . . Non-combat . | . . . . . . . . . Combat . | . . . . . . . . . Robot Hacks Applied . | . . . . . . . . . Relay Couplers Released . | . . . . . . . . . Fabnet Peak Effective % . | . . . . . . . . . Robots Rewired . | . . . . . . . . . Allies Hacked . | . . . . . . . . . Hacks Repelled . | . . . . . . . . . Allies | -11 -10 -9 -8 -7 -6 -5 -5 -4 -------- Run | Yrd Mat Mat Mat Fac Fac Fac Ext Fac Total Allies 5 | . . . . . . . 5 . Largest Group 5 | . . . . . . . 5 . Highest-Rated Group 280 | . . . . . . . 280 . Highest-Rated Ally 159 | . . . . . . . 159 . Total Orders . | . . . . . . . . . Ally Attacks 41 | . . . . . . . 41 . Total Damage 641 | . . . . . . . 641 . Kills 7 | . . . . . . . 7 . Allies Corrupted . | . . . . . . . . . Allies Melted . | . . . . . . . . . Intel | -11 -10 -9 -8 -7 -6 -5 -5 -4 ------- Run | Yrd Mat Mat Mat Fac Fac Fac Ext Fac Robot Analysis Total . | . . . . . . . . . Derelict Logs Recovered . | . . . . . . . . . Drone Launches . | . . . . . . . . . Drone Recoveries . | . . . . . . . . . Exploration | -11 -10 -9 -8 -7 -6 -5 -5 -4 ------------- Run | Yrd Mat Mat Mat Fac Fac Fac Ext Fac Turns Passed 759 | 11 45 131 69 36 38 153 122 154 Spaces Moved 1984 | 20 87 285 170 121 122 432 338 409 Core 313 | 20 87 149 28 . . . . 29 Treads . | . . . . . . . . . Legs . | . . . . . . . . . Wheels . | . . . . . . . . . Hover . | . . . . . . . . . Flight 1671 | . . 136 142 121 122 432 338 380 Fastest Speed 29 | 50 50 35 29 29 29 29 31 31 Average Speed 36 | 50 50 42 36 29 29 33 34 35 Slowest Speed 120 | 50 50 50 50 29 29 37 40 120 Overloaded Moves . | . . . . . . . . . Propulsion Burnouts . | . . . . . . . . . Robots Hopped 42 | . . 4 1 1 1 3 9 23 Cave-ins Triggered . | . . . . . . . . . Exploration Rate (%) 18 | 2 22 36 22 5 4 12 51 13 Regions Visited 8 Branch Regions 1 Pre-discovered Areas . | . . . . . . . . . Known Exits Taken 7 | . 1 1 1 1 1 1 1 . Unknown Exits Taken 1 | 1 . . . . . . . . Scrap Searched . | . . . . . . . . . Spaces Dug . | . . . . . . . . . Terrain Destroyed . | . . . . . . . . . Melee . | . . . . . . . . . Projectile . | . . . . . . . . . AOE . | . . . . . . . . . Terrain Rammed . | . . . . . . . . . Walls Destroyed . | . . . . . . . . . Machines Disabled . | . . . . . . . . . Actions | -11 -10 -9 -8 -7 -6 -5 -5 -4 --------- Run | Yrd Mat Mat Mat Fac Fac Fac Ext Fac Total 1969 | 20 87 288 173 120 122 435 332 392 Wait 1 | . . 1 . . . . . . Move 1899 | 19 86 276 167 118 119 425 320 369 Hop 35 | . . 4 1 1 1 3 8 17 Pick Up 9 | 1 . . 1 . 2 4 1 . Fast Attach 11 | . 1 1 4 . . . . 5 Attach 7 | . . . . 1 . 3 3 . Detach 1 | . . . . . . . . 1 Swap . | . . . . . . . . . Drop . | . . . . . . . . . Fire . | . . . . . . . . . Melee . | . . . . . . . . . Ram 6 | . . 6 . . . . . . Kick . | . . . . . . . . . Crush . | . . . . . . . . . Escape Stasis . | . . . . . . . . . Rewire . | . . . . . . . . . Trap . | . . . . . . . . . Miscellaneous . | . . . . . . . . . Route ------- -11/Scrapyard -10/Materials -9/Materials (discovered 3 exits: *Mat x3) -8/Materials (discovered 3 exits: *Fac x3) -7/Factory -6/Factory (discovered 4 exits: *Fac x4) -5/Factory -5/Extension -4/Factory (discovered 4 exits: Res x4) History --------- Turn | Location | Event 4 | -11/Scrapyard | Discovered new exit (range 15) 12 | -11/Scrapyard | Entered Materials 53 | -10/Materials | Discovered new exit (range 11) 57 | -10/Materials | Identified exit to Materials 57 | -10/Materials | Entered another Materials area 57 | -9/Materials | Evolved 2 slots: Propulsion x2 170 | -9/Materials | Identified exit to Materials 179 | -9/Materials | Core integrity fell below 50% 188 | -9/Materials | Entered another Materials area 188 | -8/Materials | Evolved 2 slots: Utility x2 252 | -8/Materials | Identified exit to Factory 257 | -8/Materials | Entered Factory 257 | -7/Factory | Evolved 2 slots: Power x1, Utility x1 292 | -7/Factory | Discovered new exit (range 6) 293 | -7/Factory | Identified exit to Factory 293 | -7/Factory | Entered another Factory area 293 | -6/Factory | Evolved 2 slots: Propulsion x1, Utility x1 301 | -6/Factory | Identified exit to Factory 331 | -6/Factory | Entered another Factory area 331 | -5/Factory | Evolved 2 slots: Utility x2 399 | -5/Factory | Spotted B-75 Beast 479 | -5/Factory | Discovered new exit (range 15) 484 | -5/Factory | Identified exit to Extension 484 | -5/Factory | Entered Extension 515 | -5/Extension | Rescued a captive Derelict 519 | -5/Extension | Rescued a captive Derelict 520 | -5/Extension | Rescued A7 541 | -5/Extension | Rescued a captive Derelict 542 | -5/Extension | Rescued a captive Derelict 553 | -5/Extension | Rescued a captive Derelict 557 | -5/Extension | Rescued a captive Derelict 557 | -5/Extension | Rescued a captive Derelict 562 | -5/Extension | Spotted B-75 Beast 564 | -5/Extension | Spotted B-75 Beast 582 | -5/Extension | Rescued a captive Derelict 605 | -5/Extension | Discovered new exit (range 3) 606 | -5/Extension | Identified exit to Factory 606 | -5/Extension | Entered Factory 606 | -4/Factory | Evolved 2 slots: Propulsion x1, Utility x1 701 | -4/Factory | Core integrity fell below 50% 703 | -4/Factory | Identified exit to Research 707 | -4/Factory | Lost 5 parts (4n1u) 756 | -4/Factory | Core integrity fell below 20% 756 | -4/Factory | Spotted B-86 Titan 760 | -4/Factory | Destroyed by exploding Power Conduit Last Messages --------------- 00718_ Slug penetrates Wall. 00718_ Field Propulsion Array destroyed. 00719_ Acquired VTOL Module. 00721_ U-05 Engineer builds a Wall. 00722_ Slug penetrates G-73 Enforcer. 00722_ Slug penetrates Wall. 00722_ G-73 Enforcer suffers critical hit (Destroy). 00732_ Slug penetrates Wall. 00739_ VTOL Module destroyed. 00739_ Acquired Nuclear Pulse Array. 00748_ Penetrated by Slug. 00748_ Slug penetrates Wall. 00748_ VTOL Module destroyed. 00755_ Slug penetrates Wall. 00760_ Power Conduit explodes. 00760_ Nuclear Pulse Array destroyed. 00760_ Power Conduit explodes. 00760_ B-86 Titan destroyed. 00760_ Power Conduit explodes. Map ----- +----------------------------------------------------+ | ????????????????????????????????????????????????# | | ????????????????????????????????????????????????# | | ????????????????????????????????????????????????# | | ???????????????????????????????????????????????### | | ???????????????????????????????????????????????# | | ???????????????????????????????????????????????# | | ???????????????????????????????????????????????# | | ???????????????????????????????????????????????# | | ???????????????????????????????????????????????# " | | ???????????????????????????????????????????????# " | | ?????????????????????????? ???????????????????# " | | ?????????????????????????? "?????????????????# | | ?????????????????????????? "?????????????????### | | ?????????????????# ????""" T????+#?????????????# | | ?????????????????# """""" "???? #?????????????# | | ?????????????????# """""" "#??? #????????####?# | | ?????????????????# "#??? #????????# ?# | | ?????????????" F?# #??? #????????# # | | ????????????"" ""# #### ########## # | | ???????????? # + | | ???????????? k ?# # | | ??????????? """# # | | ??????????? """# ?# | | ??????????# "# ?# | | ??????????# "F"# ??# | | ??????????# @ """####?# | | ??????????# ### | | ??????????# s # | | ??????????? """"""""" # | | ??????????? % #! | | ???????????? k s # | | ???????????? ##;; # | | ???????????? ?# ; ; ss + | | ????????????????# #;;# # | | ????????????????# #### #= | | ????????????????# ????# # | | ????????????????# ????# #########/### | | ????????????????# ??+ #????# ! | | ?????????????????????######+##########????# "" ! | | ??????????????????????????????????????????# "" ! | | ??????????????????????????????????????????# """ | | ??????????????????????????????????????????# """ | | ??????????????????????????????????????????# """ ] | | ??????????????????????????????????????????# | | ??????????????????????????????????????????# | | ??????????????????????????????????????????# | | ?????????????????????????????????????#########/### | | ?????????????????????????????????????# + | | ?????????????????????????????????????#= # ### | | ?????????????????????????????????????# ! # #?? | +----------------------------------------------------+ Best States ------------- Heat Dissipation 43 Energy Generation 20 Energy Capacity 175 Matter Stores 229 Matter Capacity 300 Sight Range 16 Robot Scan Range 16 Terrain Scan Density 10 Evasion (%) 72 Item Schematics ----------------- None Robot Schematics ------------------ None Fabricated ------------ Nothing Alien Tech Used ----------------- None Achievements -------------- None Challenges ------------ None Game ------ Seed VisualTractorExpander Manual? 0 Play Time 00:24:22 Cumulative 165.7 hours Start 2024.04.07 @ 06:16:09 End 2024.04.07 @ 06:38:47 Sessions 1 Manual Loads 0 Difficulty Rogue Special Mode None Game No. 133 Rogue 128 Adventurer 0 Explorer 5 Win Type - Total 4 Types 1/0/1/2/0/0/0/0/0 Lore% 52 Gallery% 61 Achievement% 47 Wizard Run 0 Options --------- Layout 1 ASCII 0 Keyboard 0 Movement Mouse Keybinds 0 Fullscreen 2 Font 24/Tamsyn Map View 50x35 Zoom Use 0% Tactical HUD 1 Map Filters NONE Filters NONE Steam 1 RUN: 4f4a28ac-42f8-4da6-ace7-e654e7765012